[Event "December 5 Late 2023"]
[Site "https://www.chess.com"]
[Date "2023.12.05"]
[Round "10"]
[White "Mickiewicz, Piotr"]
[Black "Przybylski, Wojciech"]
[Result "0-1"]
[Board "69"]
[TimeControl "180+1"]
[WhiteFideId "1114891"]
[BlackFideId "1117599"]
[WhiteElo "2388"]
[BlackElo "2534"]
[WhiteTeam "POL"]
[BlackTeam "POL"]
[WhiteClock "0:00:02"]
[BlackClock "0:00:07"]

1. Nf3 {[%clk 0:03:00]}  Nf6 {[%clk 0:02:59]} 2. g3 {[%clk 0:03:01]}  d5 {[%clk 0:02:57]} 3. Bg2 {[%clk 0:03:02]}  c6 {[%clk 0:02:57]} 4. O-O {[%clk 0:02:59]}  Bg4 {[%clk 0:02:57]} 5. b3 {[%clk 0:02:57]}  Nbd7 {[%clk 0:02:56]} 6. Bb2 {[%clk 0:02:57]}  e6 {[%clk 0:02:56]} 7. d3 {[%clk 0:02:55]}  Bc5 {[%clk 0:02:55]} 8. Nbd2 {[%clk 0:02:48]}  O-O {[%clk 0:02:54]} 9. h3 {[%clk 0:02:46]}  Bxf3 {[%clk 0:02:54]} 10. Nxf3 {[%clk 0:02:39]}  a5 {[%clk 0:02:53]} 11. a3 {[%clk 0:02:35]}  b5 {[%clk 0:02:52]} 12. e3 {[%clk 0:02:30]}  Qc7 {[%clk 0:02:50]} 13. Qe2 {[%clk 0:02:29]}  Rfe8 {[%clk 0:02:49]} 14. e4 {[%clk 0:02:25]}  dxe4 {[%clk 0:02:46]} 15. dxe4 {[%clk 0:02:19]}  e5 {[%clk 0:02:46]} 16. Nh4 {[%clk 0:02:12]}  g6 {[%clk 0:02:36]} 17. c3 {[%clk 0:02:02]}  a4 {[%clk 0:02:30]} 18. b4 {[%clk 0:02:02]}  Ba7 {[%clk 0:02:29]} 19. Bc1 {[%clk 0:02:02]}  Nf8 {[%clk 0:02:18]} 20. Bh6 {[%clk 0:01:59]}  Ne6 {[%clk 0:02:16]} 21. Nf3 {[%clk 0:01:56]}  c5 {[%clk 0:02:04]} 22. Rac1 {[%clk 0:01:43]}  cxb4 {[%clk 0:01:49]} 23. cxb4 {[%clk 0:01:42]}  Qb7 {[%clk 0:01:41]} 24. Rfd1 {[%clk 0:01:28]}  Bd4 {[%clk 0:00:50]} 25. Nxd4 {[%clk 0:01:22]}  Nxd4 {[%clk 0:00:49]} 26. Rxd4 {[%clk 0:01:17]}  exd4 {[%clk 0:00:43]} 27. e5 {[%clk 0:01:16]}  Nd5 {[%clk 0:00:41]} 28. Rc5 {[%clk 0:01:14]}  Rad8 {[%clk 0:00:40]} 29. Qe4 {[%clk 0:01:10]}  d3 {[%clk 0:00:31]} 30. Rxd5 {[%clk 0:00:18]}  Qxd5 {[%clk 0:00:25]} 31. Qxd5 {[%clk 0:00:19]}  Rxd5 {[%clk 0:00:25]} 32. Bxd5 {[%clk 0:00:20]}  d2 {[%clk 0:00:18]} 33. Bf3 {[%clk 0:00:14]}  Rd8 {[%clk 0:00:13]} 34. Bd1 {[%clk 0:00:13]}  Rd3 {[%clk 0:00:12]} 35. Kf1 {[%clk 0:00:13]}  Rxa3 {[%clk 0:00:11]} 36. Bxd2 {[%clk 0:00:13]}  Ra1 {[%clk 0:00:10]} 37. Ke2 {[%clk 0:00:07]}  a3 {[%clk 0:00:10]} 38. Bb3 {[%clk 0:00:06]}  Rb1 {[%clk 0:00:10]} 39. Bd5 {[%clk 0:00:05]}  Rb2 {[%clk 0:00:09]} 40. Kd3 {[%clk 0:00:04]}  a2 {[%clk 0:00:08]} 41. Bc3 {[%clk 0:00:04]}  a1=Q {[%clk 0:00:07]} 42. e6 {[%clk 0:00:02]}  fxe6 {[%clk 0:00:07]} 43. Bxe6+ {[%clk 0:00:03]}  Kf8 {[%clk 0:00:07]} 44. Bd5 {[%clk 0:00:02]}  Qd1+ {[%clk 0:00:07]} 0-1

[Event "December 5 Late 2023"]
[Site "https://www.chess.com"]
[Date "2023.12.05"]
[Round "10"]
[White "Pein, Jonathan"]
[Black "Makaraci, Tunahan"]
[Result "1/2-1/2"]
[Board "70"]
[TimeControl "180+1"]
[WhiteFideId "417092"]
[BlackFideId "6356559"]
[WhiteElo "2382"]
[BlackElo "2515"]
[WhiteTeam "ENG"]
[BlackTeam "TUR"]
[WhiteClock "0:00:09"]
[BlackClock "0:00:03"]

1. b3 {[%clk 0:03:00]}  d5 {[%clk 0:02:58]} 2. Bb2 {[%clk 0:03:01]}  c6 {[%clk 0:02:57]} 3. Nf3 {[%clk 0:03:01]}  Nf6 {[%clk 0:02:56]} 4. e3 {[%clk 0:03:01]}  Bg4 {[%clk 0:02:57]} 5. h3 {[%clk 0:03:00]}  Bxf3 {[%clk 0:02:57]} 6. Qxf3 {[%clk 0:03:01]}  Nbd7 {[%clk 0:02:57]} 7. d3 {[%clk 0:03:00]}  e5 {[%clk 0:02:57]} 8. Nd2 {[%clk 0:03:00]}  Bd6 {[%clk 0:02:56]} 9. g3 {[%clk 0:03:00]}  Qe7 {[%clk 0:02:53]} 10. Bg2 {[%clk 0:03:01]}  Ba3 {[%clk 0:02:48]} 11. Bxa3 {[%clk 0:03:00]}  Qxa3 {[%clk 0:02:48]} 12. O-O {[%clk 0:02:58]}  O-O {[%clk 0:02:47]} 13. c4 {[%clk 0:02:58]}  Qb2 {[%clk 0:02:41]} 14. Rfd1 {[%clk 0:02:46]}  Nc5 {[%clk 0:02:37]} 15. g4 {[%clk 0:02:25]}  Nxd3 {[%clk 0:02:22]} 16. cxd5 {[%clk 0:02:24]}  cxd5 {[%clk 0:02:20]} 17. g5 {[%clk 0:02:23]}  e4 {[%clk 0:02:21]} 18. Qf5 {[%clk 0:02:22]}  Nh5 {[%clk 0:01:57]} 19. Qxd5 {[%clk 0:02:17]}  Rad8 {[%clk 0:01:55]} 20. Qxe4 {[%clk 0:02:09]}  Nxf2 {[%clk 0:01:55]} 21. Kxf2 {[%clk 0:01:02]}  Rxd2+ {[%clk 0:01:51]} 22. Rxd2 {[%clk 0:01:02]}  Qxd2+ {[%clk 0:01:52]} 23. Kg1 {[%clk 0:01:03]}  Qb2 {[%clk 0:01:39]} 24. Qd4 {[%clk 0:00:35]}  Qc2 {[%clk 0:01:08]} 25. Rf1 {[%clk 0:00:24]}  Ng3 {[%clk 0:01:06]} 26. Rf2 {[%clk 0:00:04]}  Ne2+ {[%clk 0:01:05]} 27. Rxe2 {[%clk 0:00:04]}  Qxe2 {[%clk 0:01:06]} 28. Bxb7 {[%clk 0:00:04]}  Re8 {[%clk 0:01:04]} 29. e4 {[%clk 0:00:03]}  g6 {[%clk 0:00:48]} 30. Qxa7 {[%clk 0:00:03]}  Qe1+ {[%clk 0:00:31]} 31. Kg2 {[%clk 0:00:02]}  Qd2+ {[%clk 0:00:32]} 32. Qf2 {[%clk 0:00:02]}  Qxg5+ {[%clk 0:00:31]} 33. Kh1 {[%clk 0:00:01]}  Rd8 {[%clk 0:00:28]} 34. Bd5 {[%clk 0:00:01]}  Rd7 {[%clk 0:00:25]} 35. a4 {[%clk 0:00:01]}  Qe5 {[%clk 0:00:21]} 36. Qf3 {[%clk 0:00:02]}  Kg7 {[%clk 0:00:19]} 37. a5 {[%clk 0:00:02]}  Qa1+ {[%clk 0:00:19]} 38. Kg2 {[%clk 0:00:02]}  Qxa5 {[%clk 0:00:19]} 39. h4 {[%clk 0:00:02]}  Qd2+ {[%clk 0:00:18]} 40. Kg3 {[%clk 0:00:02]}  Qd4 {[%clk 0:00:16]} 41. Qf4 {[%clk 0:00:02]}  Rxd5 {[%clk 0:00:12]} 42. exd5 {[%clk 0:00:02]}  Qxd5 {[%clk 0:00:13]} 43. Qc4 {[%clk 0:00:01]}  Qxc4 {[%clk 0:00:12]} 44. bxc4 {[%clk 0:00:02]}  Kf6 {[%clk 0:00:13]} 45. Kf4 {[%clk 0:00:03]}  Ke6 {[%clk 0:00:13]} 46. Kg5 {[%clk 0:00:02]}  f5 {[%clk 0:00:07]} 47. h5 {[%clk 0:00:02]}  Kd6 {[%clk 0:00:05]} 48. h6 {[%clk 0:00:03]}  Ke5 {[%clk 0:00:04]} 49. c5 {[%clk 0:00:03]}  Kd5 {[%clk 0:00:05]} 50. Kf6 {[%clk 0:00:03]}  f4 {[%clk 0:00:05]} 51. Kg7 {[%clk 0:00:04]}  f3 {[%clk 0:00:06]} 52. Kxh7 {[%clk 0:00:05]}  f2 {[%clk 0:00:06]} 53. Kxg6 {[%clk 0:00:06]}  f1=Q {[%clk 0:00:07]} 54. h7 {[%clk 0:00:06]}  Qf8 {[%clk 0:00:07]} 55. c6 {[%clk 0:00:06]}  Qh8 {[%clk 0:00:07]} 56. c7 {[%clk 0:00:06]}  Qe8+ {[%clk 0:00:06]} 57. Kg7 {[%clk 0:00:07]}  Qd7+ {[%clk 0:00:07]} 58. Kg8 {[%clk 0:00:07]}  Qe8+ {[%clk 0:00:06]} 59. Kg7 {[%clk 0:00:07]}  Qe5+ {[%clk 0:00:06]} 60. Kg8 {[%clk 0:00:07]}  Qg5+ {[%clk 0:00:06]} 61. Kf7 {[%clk 0:00:05]}  Qh5+ {[%clk 0:00:05]} 62. Kg7 {[%clk 0:00:05]}  Qg5+ {[%clk 0:00:05]} 63. Kf7 {[%clk 0:00:06]}  Qf5+ {[%clk 0:00:06]} 64. Kg7 {[%clk 0:00:06]}  Qd7+ {[%clk 0:00:06]} 65. Kg8 {[%clk 0:00:06]}  Qc8+ {[%clk 0:00:06]} 66. Kg7 {[%clk 0:00:06]}  Qxc7+ {[%clk 0:00:06]} 67. Kg8 {[%clk 0:00:07]}  Qd8+ {[%clk 0:00:06]} 68. Kg7 {[%clk 0:00:07]}  Qg5+ {[%clk 0:00:07]} 69. Kh8 {[%clk 0:00:07]}  Qf6+ {[%clk 0:00:04]} 70. Kg8 {[%clk 0:00:07]}  Qg6+ {[%clk 0:00:04]} 71. Kh8 {[%clk 0:00:07]}  Qh6 {[%clk 0:00:04]} 72. Kg8 {[%clk 0:00:08]}  Ke6 {[%clk 0:00:02]} 73. h8=Q {[%clk 0:00:07]}  Qg6+ {[%clk 0:00:02]} 74. Qg7 {[%clk 0:00:07]}  Qe8+ {[%clk 0:00:02]} 75. Kh7 {[%clk 0:00:08]}  Qh5+ {[%clk 0:00:02]} 76. Qh6+ {[%clk 0:00:08]}  Qxh6+ {[%clk 0:00:03]} 77. Kxh6 {[%clk 0:00:09]} 1/2-1/2

[Event "December 5 Late 2023"]
[Site "https://www.chess.com"]
[Date "2023.12.05"]
[Round "10"]
[White "Hajiyev, Kanan"]
[Black "Al-Saffar, Araz Basim Mohammed S"]
[Result "1-0"]
[Board "71"]
[TimeControl "180+1"]
[WhiteFideId "13404148"]
[BlackFideId "4801040"]
[WhiteElo "2514"]
[BlackElo "2381"]
[WhiteTeam "AZE"]
[BlackTeam "IRQ"]
[WhiteClock "0:00:08"]
[BlackClock "0:00:00"]

1. d4 {[%clk 0:03:00]}  Nf6 {[%clk 0:02:58]} 2. Nf3 {[%clk 0:03:00]}  e6 {[%clk 0:02:58]} 3. c4 {[%clk 0:03:01]}  Bb4+ {[%clk 0:02:57]} 4. Bd2 {[%clk 0:03:01]}  Qe7 {[%clk 0:02:57]} 5. a3 {[%clk 0:03:02]}  Bxd2+ {[%clk 0:02:55]} 6. Qxd2 {[%clk 0:03:03]}  d6 {[%clk 0:02:55]} 7. Nc3 {[%clk 0:03:03]}  e5 {[%clk 0:02:51]} 8. dxe5 {[%clk 0:03:03]}  dxe5 {[%clk 0:02:51]} 9. Nd5 {[%clk 0:03:03]}  Nxd5 {[%clk 0:02:50]} 10. cxd5 {[%clk 0:03:04]}  O-O {[%clk 0:02:48]} 11. g3 {[%clk 0:03:04]}  e4 {[%clk 0:02:47]} 12. Nd4 {[%clk 0:03:04]}  Qe5 {[%clk 0:02:40]} 13. Nb5 {[%clk 0:03:00]}  c6 {[%clk 0:02:31]} 14. Nc3 {[%clk 0:02:59]}  Rd8 {[%clk 0:02:28]} 15. Bg2 {[%clk 0:02:53]}  cxd5 {[%clk 0:02:26]} 16. Nxe4 {[%clk 0:02:36]}  Nc6 {[%clk 0:02:11]} 17. Nc5 {[%clk 0:02:23]}  d4 {[%clk 0:01:55]} 18. Rc1 {[%clk 0:02:09]}  Bg4 {[%clk 0:01:43]} 19. h3 {[%clk 0:02:04]}  Bh5 {[%clk 0:01:36]} 20. g4 {[%clk 0:02:02]}  Bg6 {[%clk 0:01:35]} 21. Nxb7 {[%clk 0:01:47]}  Be4 {[%clk 0:01:24]} 22. Nxd8 {[%clk 0:01:43]}  Bxg2 {[%clk 0:01:19]} 23. Nxc6 {[%clk 0:01:41]}  Bxc6 {[%clk 0:01:15]} 24. O-O {[%clk 0:01:00]}  Qd5 {[%clk 0:00:51]} 25. Rxc6 {[%clk 0:00:51]}  Qxc6 {[%clk 0:00:50]} 26. Qxd4 {[%clk 0:00:51]}  h5 {[%clk 0:00:49]} 27. Rd1 {[%clk 0:00:44]}  hxg4 {[%clk 0:00:47]} 28. hxg4 {[%clk 0:00:43]}  Re8 {[%clk 0:00:46]} 29. e3 {[%clk 0:00:18]}  Qf3 {[%clk 0:00:45]} 30. Rd2 {[%clk 0:00:11]}  g6 {[%clk 0:00:34]} 31. Qf4 {[%clk 0:00:10]}  Qxf4 {[%clk 0:00:33]} 32. exf4 {[%clk 0:00:11]}  Re4 {[%clk 0:00:33]} 33. f3 {[%clk 0:00:08]}  Rxf4 {[%clk 0:00:33]} 34. Kf2 {[%clk 0:00:09]}  a5 {[%clk 0:00:19]} 35. Ke3 {[%clk 0:00:10]}  Rc4 {[%clk 0:00:18]} 36. Rd4 {[%clk 0:00:09]}  Rc2 {[%clk 0:00:18]} 37. b3 {[%clk 0:00:07]}  Ra2 {[%clk 0:00:17]} 38. Ra4 {[%clk 0:00:06]}  Rb2 {[%clk 0:00:18]} 39. b4 {[%clk 0:00:04]}  axb4 {[%clk 0:00:16]} 40. Rxb4 {[%clk 0:00:04]}  Ra2 {[%clk 0:00:16]} 41. a4 {[%clk 0:00:05]}  Kf8 {[%clk 0:00:16]} 42. g5 {[%clk 0:00:06]}  Ke7 {[%clk 0:00:17]} 43. Rd4 {[%clk 0:00:06]}  Ke6 {[%clk 0:00:18]} 44. Ke4 {[%clk 0:00:06]}  Re2+ {[%clk 0:00:17]} 45. Kd3 {[%clk 0:00:07]}  Ra2 {[%clk 0:00:17]} 46. Kc3 {[%clk 0:00:07]}  Ra3+ {[%clk 0:00:17]} 47. Kb4 {[%clk 0:00:08]}  Rxf3 {[%clk 0:00:18]} 48. a5 {[%clk 0:00:09]}  Rf1 {[%clk 0:00:17]} 49. a6 {[%clk 0:00:09]}  Ra1 {[%clk 0:00:16]} 50. Kb5 {[%clk 0:00:08]}  Kf5 {[%clk 0:00:16]} 51. Ra4 {[%clk 0:00:07]}  Rb1+ {[%clk 0:00:14]} 52. Kc6 {[%clk 0:00:07]}  Rc1+ {[%clk 0:00:06]} 53. Kb6 {[%clk 0:00:06]}  Rb1+ {[%clk 0:00:06]} 54. Kc7 {[%clk 0:00:06]}  Rc1+ {[%clk 0:00:07]} 55. Kd6 {[%clk 0:00:06]}  Rd1+ {[%clk 0:00:06]} 56. Ke7 {[%clk 0:00:07]}  Re1+ {[%clk 0:00:00]} 57. Kxf7 {[%clk 0:00:08]} 1-0

[Event "December 5 Late 2023"]
[Site "https://www.chess.com"]
[Date "2023.12.05"]
[Round "10"]
[White "Mazurkiewicz, Michal"]
[Black "Buenafe Moya, Javier"]
[Result "1-0"]
[Board "72"]
[TimeControl "180+1"]
[WhiteFideId "1124943"]
[BlackFideId "2206412"]
[WhiteElo "2490"]
[BlackElo "2374"]
[WhiteTeam "POL"]
[BlackTeam "ESP"]
[WhiteClock "0:01:28"]
[BlackClock "0:01:53"]

1. e4 {[%clk 0:03:00]}  e5 {[%clk 0:02:57]} 2. Nf3 {[%clk 0:02:59]}  Nc6 {[%clk 0:02:57]} 3. Bb5 {[%clk 0:02:59]}  a6 {[%clk 0:02:56]} 4. Bxc6 {[%clk 0:02:59]}  dxc6 {[%clk 0:02:56]} 5. O-O {[%clk 0:03:00]}  f6 {[%clk 0:02:54]} 6. d4 {[%clk 0:03:00]}  exd4 {[%clk 0:02:53]} 7. Nxd4 {[%clk 0:03:01]}  c5 {[%clk 0:02:39]} 8. Nb3 {[%clk 0:03:01]}  Qxd1 {[%clk 0:02:38]} 9. Rxd1 {[%clk 0:03:02]}  b6 {[%clk 0:02:37]} 10. Bf4 {[%clk 0:03:00]}  Ra7 {[%clk 0:02:28]} 11. Nc3 {[%clk 0:02:58]}  Be6 {[%clk 0:02:17]} 12. Nd5 {[%clk 0:02:57]}  Bxd5 {[%clk 0:02:17]} 13. Rxd5 {[%clk 0:02:51]}  Ne7 {[%clk 0:02:16]} 14. Rd2 {[%clk 0:02:50]}  Ng6 {[%clk 0:02:15]} 15. Bg3 {[%clk 0:02:50]}  h5 {[%clk 0:02:14]} 16. Rad1 {[%clk 0:02:42]}  h4 {[%clk 0:02:11]} 17. Rd8+ {[%clk 0:02:41]}  Kf7 {[%clk 0:02:10]} 18. R8d7+ {[%clk 0:02:21]}  Ke6 {[%clk 0:02:01]} 19. Rxc7 {[%clk 0:02:13]}  Rxc7 {[%clk 0:02:00]} 20. Bxc7 {[%clk 0:02:14]}  b5 {[%clk 0:02:00]} 21. f4 {[%clk 0:02:13]}  f5 {[%clk 0:01:58]} 22. exf5+ {[%clk 0:01:54]}  Kxf5 {[%clk 0:01:57]} 23. Rd5+ {[%clk 0:01:37]}  Ke4 {[%clk 0:01:56]} 24. Rg5 {[%clk 0:01:37]}  Nxf4 {[%clk 0:01:53]} 25. Re5# {[%clk 0:01:28]} 1-0

[Event "December 5 Late 2023"]
[Site "https://www.chess.com"]
[Date "2023.12.05"]
[Round "10"]
[White "Figorito, Nick"]
[Black "Reprintsev, Alexander"]
[Result "0-1"]
[Board "73"]
[TimeControl "180+1"]
[WhiteFideId "30923689"]
[BlackFideId "14100541"]
[WhiteElo "2373"]
[BlackElo "2483"]
[WhiteTeam "USA"]
[BlackTeam "UKR"]
[WhiteClock "0:00:00"]
[BlackClock "0:00:56"]

1. Nf3 {[%clk 0:03:00]}  d5 {[%clk 0:02:59]} 2. g3 {[%clk 0:03:01]}  Nc6 {[%clk 0:02:58]} 3. d4 {[%clk 0:03:01]}  Bf5 {[%clk 0:02:58]} 4. Bg2 {[%clk 0:03:01]}  Nb4 {[%clk 0:02:58]} 5. Na3 {[%clk 0:03:01]}  e6 {[%clk 0:02:58]} 6. O-O {[%clk 0:03:01]}  h6 {[%clk 0:02:57]} 7. c4 {[%clk 0:03:01]}  Nf6 {[%clk 0:02:55]} 8. Bf4 {[%clk 0:02:57]}  c6 {[%clk 0:02:54]} 9. Qb3 {[%clk 0:02:53]}  Be7 {[%clk 0:02:49]} 10. Ne5 {[%clk 0:02:36]}  O-O {[%clk 0:02:47]} 11. Nd3 {[%clk 0:02:35]}  Nxd3 {[%clk 0:02:40]} 12. exd3 {[%clk 0:02:35]}  b6 {[%clk 0:02:38]} 13. Rfc1 {[%clk 0:02:19]}  Qd7 {[%clk 0:02:38]} 14. Bf1 {[%clk 0:02:17]}  Rfe8 {[%clk 0:02:31]} 15. Nc2 {[%clk 0:02:09]}  Bd6 {[%clk 0:02:23]} 16. Bxd6 {[%clk 0:02:08]}  Qxd6 {[%clk 0:02:22]} 17. Ne3 {[%clk 0:02:03]}  Bg6 {[%clk 0:02:21]} 18. c5 {[%clk 0:02:00]}  Qc7 {[%clk 0:02:14]} 19. cxb6 {[%clk 0:01:48]}  axb6 {[%clk 0:02:13]} 20. a3 {[%clk 0:01:41]}  Rec8 {[%clk 0:02:08]} 21. Rc3 {[%clk 0:01:41]}  Rab8 {[%clk 0:02:06]} 22. Rac1 {[%clk 0:01:40]}  Qd6 {[%clk 0:02:01]} 23. Qa4 {[%clk 0:01:38]}  c5 {[%clk 0:01:57]} 24. Qb5 {[%clk 0:01:18]}  Nd7 {[%clk 0:01:49]} 25. b4 {[%clk 0:01:08]}  Qf8 {[%clk 0:01:45]} 26. Qxd7 {[%clk 0:01:03]}  Rd8 {[%clk 0:01:45]} 27. Qa4 {[%clk 0:00:59]}  cxd4 {[%clk 0:01:45]} 28. Rc7 {[%clk 0:00:55]}  dxe3 {[%clk 0:01:45]} 29. fxe3 {[%clk 0:00:55]}  h5 {[%clk 0:01:24]} 30. Qd1 {[%clk 0:00:48]}  Ra8 {[%clk 0:01:20]} 31. R1c3 {[%clk 0:00:38]}  d4 {[%clk 0:01:20]} 32. exd4 {[%clk 0:00:36]}  Rxd4 {[%clk 0:01:20]} 33. Qf3 {[%clk 0:00:30]}  Rad8 {[%clk 0:01:18]} 34. Be2 {[%clk 0:00:22]}  h4 {[%clk 0:01:17]} 35. Qe3 {[%clk 0:00:15]}  Qd6 {[%clk 0:01:12]} 36. Rc8 {[%clk 0:00:12]}  Kh7 {[%clk 0:01:06]} 37. Rxd8 {[%clk 0:00:12]}  Qxd8 {[%clk 0:01:06]} 38. gxh4 {[%clk 0:00:11]}  Qxh4 {[%clk 0:01:02]} 39. Kg2 {[%clk 0:00:09]}  Rd5 {[%clk 0:00:59]} 40. Kh1 {[%clk 0:00:01]}  Qe1+ {[%clk 0:00:56]} 41. Kg2 {[%clk 0:00:00]}  Qxc3 {[%clk 0:00:56]} 0-1

[Event "December 5 Late 2023"]
[Site "https://www.chess.com"]
[Date "2023.12.05"]
[Round "10"]
[White "NovakRatko"]
[Black "Kostiukov, Alexandr"]
[Result "0-1"]
[Board "75"]
[TimeControl "180+1"]
[BlackFideId "14108100"]
[WhiteElo "2467"]
[BlackElo "2370"]
[BlackTeam "UKR"]
[WhiteClock "0:00:03"]
[BlackClock "0:00:55"]

1. d4 {[%clk 0:03:00]}  g6 {[%clk 0:02:58]} 2. c4 {[%clk 0:03:00]}  Bg7 {[%clk 0:02:58]} 3. Nc3 {[%clk 0:03:00]}  d6 {[%clk 0:02:58]} 4. e4 {[%clk 0:03:01]}  e5 {[%clk 0:02:59]} 5. d5 {[%clk 0:03:01]}  f5 {[%clk 0:02:58]} 6. f4 {[%clk 0:03:00]}  exf4 {[%clk 0:02:56]} 7. Bxf4 {[%clk 0:02:57]}  fxe4 {[%clk 0:02:56]} 8. Nxe4 {[%clk 0:02:57]}  Qe7 {[%clk 0:02:57]} 9. Qe2 {[%clk 0:02:57]}  Nf6 {[%clk 0:02:54]} 10. Nc3 {[%clk 0:02:44]}  Qxe2+ {[%clk 0:02:49]} 11. Bxe2 {[%clk 0:02:43]}  O-O {[%clk 0:02:50]} 12. Bd2 {[%clk 0:02:37]}  Na6 {[%clk 0:02:41]} 13. O-O-O {[%clk 0:02:28]}  Ng4 {[%clk 0:02:32]} 14. Nh3 {[%clk 0:02:25]}  Bf5 {[%clk 0:02:22]} 15. Rdf1 {[%clk 0:02:19]}  Nc5 {[%clk 0:02:15]} 16. Nf4 {[%clk 0:02:02]}  Rae8 {[%clk 0:02:09]} 17. Ne6 {[%clk 0:01:24]}  Nxe6 {[%clk 0:02:03]} 18. dxe6 {[%clk 0:01:19]}  Bxe6 {[%clk 0:01:53]} 19. h3 {[%clk 0:01:14]}  Ne5 {[%clk 0:01:51]} 20. b3 {[%clk 0:01:11]}  Bf5 {[%clk 0:01:43]} 21. Nd5 {[%clk 0:00:37]}  c6 {[%clk 0:01:39]} 22. g4 {[%clk 0:00:32]}  Be4 {[%clk 0:01:31]} 23. Nc7 {[%clk 0:00:20]}  Re7 {[%clk 0:01:16]} 24. Rxf8+ {[%clk 0:00:19]}  Bxf8 {[%clk 0:01:14]} 25. Re1 {[%clk 0:00:17]}  Rxc7 {[%clk 0:01:10]} 26. Bf4 {[%clk 0:00:15]}  Bg7 {[%clk 0:01:05]} 27. Kd2 {[%clk 0:00:15]}  Re7 {[%clk 0:01:05]} 28. Bd1 {[%clk 0:00:15]}  d5 {[%clk 0:01:04]} 29. cxd5 {[%clk 0:00:14]}  cxd5 {[%clk 0:01:05]} 30. b4 {[%clk 0:00:14]}  Kf7 {[%clk 0:01:03]} 31. Bb3 {[%clk 0:00:14]}  Nc4+ {[%clk 0:01:02]} 32. Kc1 {[%clk 0:00:12]}  Bc3 {[%clk 0:00:59]} 33. Rd1 {[%clk 0:00:08]}  Kg7 {[%clk 0:00:55]} 34. Bg5 {[%clk 0:00:03]}  Bb2# {[%clk 0:00:55]} 0-1

[Event "December 5 Late 2023"]
[Site "https://www.chess.com"]
[Date "2023.12.05"]
[Round "10"]
[White "Mizzi, Jack"]
[Black "Mazzilli, Piero"]
[Result "1-0"]
[Board "77"]
[TimeControl "180+1"]
[WhiteFideId "5602521"]
[BlackFideId "807087"]
[WhiteElo "2449"]
[BlackElo "2337"]
[WhiteTeam "MLT"]
[BlackTeam "ITA"]
[WhiteClock "0:01:25"]
[BlackClock "0:00:00"]

1. d4 {[%clk 0:02:58]}  d5 {[%clk 0:01:20]} 2. c4 {[%clk 0:02:56]}  c6 {[%clk 0:01:20]} 3. Nf3 {[%clk 0:02:56]}  Nf6 {[%clk 0:01:18]} 4. Nbd2 {[%clk 0:02:56]}  e6 {[%clk 0:01:18]} 5. g3 {[%clk 0:02:56]}  Be7 {[%clk 0:01:19]} 6. Bg2 {[%clk 0:02:55]}  O-O {[%clk 0:01:19]} 7. O-O {[%clk 0:02:55]}  b6 {[%clk 0:01:20]} 8. Qc2 {[%clk 0:02:56]}  Bb7 {[%clk 0:01:20]} 9. e4 {[%clk 0:02:56]}  dxe4 {[%clk 0:01:20]} 10. Nxe4 {[%clk 0:02:57]}  Nxe4 {[%clk 0:01:21]} 11. Qxe4 {[%clk 0:02:58]}  Nd7 {[%clk 0:01:20]} 12. Rd1 {[%clk 0:02:58]}  Rc8 {[%clk 0:01:16]} 13. h4 {[%clk 0:02:57]}  Qc7 {[%clk 0:01:14]} 14. Bf4 {[%clk 0:02:57]}  Bd6 {[%clk 0:01:15]} 15. Ng5 {[%clk 0:02:57]}  g6 {[%clk 0:01:13]} 16. Nxe6 {[%clk 0:02:54]}  fxe6 {[%clk 0:01:12]} 17. Qxe6+ {[%clk 0:02:54]}  Rf7 {[%clk 0:01:10]} 18. Bxd6 {[%clk 0:02:54]}  Qd8 {[%clk 0:01:10]} 19. Re1 {[%clk 0:02:52]}  Nf8 {[%clk 0:01:06]} 20. Bxf8 {[%clk 0:02:48]}  Qxf8 {[%clk 0:01:07]} 21. d5 {[%clk 0:02:43]}  cxd5 {[%clk 0:01:07]} 22. cxd5 {[%clk 0:02:40]}  Rc2 {[%clk 0:01:07]} 23. d6 {[%clk 0:02:34]}  Bxg2 {[%clk 0:01:02]} 24. d7 {[%clk 0:02:26]}  Bc6 {[%clk 0:00:51]} 25. Rad1 {[%clk 0:02:24]}  Bxd7 {[%clk 0:00:12]} 26. Rxd7 {[%clk 0:02:23]}  Rxf2 {[%clk 0:00:10]} 27. Qd5 {[%clk 0:02:13]}  Kg7 {[%clk 0:00:06]} 28. Qd4+ {[%clk 0:02:07]}  Rf6 {[%clk 0:00:05]} 29. Rxf7+ {[%clk 0:02:04]}  Qxf7 {[%clk 0:00:05]} 30. Rf1 {[%clk 0:02:01]}  Qe7 {[%clk 0:00:03]} 31. g4 {[%clk 0:01:37]}  Qc5 {[%clk 0:00:00]} 32. Rd1 {[%clk 0:01:25]} 1-0